[Event "Gibraltar Challengers B 2020"]
[Site "Caleta"]
[Date "2020.01.27"]
[Round "4.5"]
[White "Ruperez, Miguel"]
[Black "De Abreu, Roberto N"]
[Result "1/2-1/2"]
[ECO "A04"]
[WhiteElo "2126"]
[BlackElo "2154"]
[Annotator "ChessBase"]
[PlyCount "90"]
[EventDate "2020.01.20"]
[EventType "swiss"]
[EventCountry "GGB"]
[SourceTitle "playchess.com"]
[Source "ChessBase"]
[SourceQuality "1"]
[TimeControl "6600+10"]

1. Nf3 {[%emt 0:00:00]} c5 {[%emt 0:00:27]} 2. b3 {[%emt 0:00:08]} d6 {[%emt 0:00:47]} 3. d4 {[%emt 0:03:32]} cxd4 {[%emt 0:03:42]} 4. Nxd4 {[%emt 0:00:10]} Nf6 {[%emt 0:11:49]} 5. g3 {[%emt 0:06:30]} Nc6 {[%emt 0:12:41]} 6. Nxc6 {[%emt 0:05:07]} bxc6 {[%emt 0:00:02]} 7. Bg2 {[%emt 0:00:23]} d5 {[%emt 0:00:21]} 8. Bb2 {[%emt 0:01:26]} e6 {[%emt 0:00:07]} 9. O-O {[%emt 0:01:06]} Be7 {[%emt 0:00:07]} 10. c4 {[%emt 0:01:55]} O-O {[%emt 0:00:07]} 11. Nd2 {[%emt 0:01:49]} Bb7 {[%emt 0:13:33]} 12. Qc2 {[%emt 0:11:50]} Qb6 {[%emt 0:06:14]} 13. Rac1 {[%emt 0:06:23]} Rac8 {[%emt 0:05:23]} 14. Rfd1 {[%emt 0:08:22]} Rfd8 {[%emt 0:01:04]} 15. e3 {[%emt 0:06:24]} a5 {[%emt 0:02:29]} 16. Rb1 {[%emt 0:08:14]} Ba6 {[%emt 0:11:29]} 17. h3 {[%emt 0:10:26]} Nd7 {[%emt 0:05:26]} 18. Nf3 {[%emt 0:02:13]} h6 {[%emt 0:05:24]} 19. Bd4 {[%emt 0:10:02]} Qc7 {[%emt 0:03:01]} 20. cxd5 {[%emt 0:02:46]} cxd5 {[%emt 0:00:32]} 21. Qb2 {[%emt 0:00:45]} Bf8 {[%emt 0:01:43]} 22. Rbc1 {[%emt 0:00:26]} Qb7 {[%emt 0:02:27]} 23. Rxc8 {[%emt 0:00:59]} Rxc8 {[%emt 0:00:01]} 24. Rc1 {[%emt 0:00:19]} Nc5 {[%emt 0:04:38]} 25. Ne1 {[%emt 0:02:31]} f6 {[%emt 0:04:51]} 26. Bc3 {[%emt 0:01:36]} a4 {[%emt 0:00:27]} 27. b4 {[%emt 0:03:44]} Ne4 {[%emt 0:00:20]} 28. a3 {[%emt 0:00:22]} Bd6 {[%emt 0:01:12]} 29. Nf3 {[%emt 0:01:01]} Rc7 {[%emt 0:02:07]} 30. Be1 {[%emt 0:00:45]} Bc4 {[%emt 0:01:20]} 31. Nd4 {[%emt 0:03:02]} Qc8 {[%emt 0:00:28]} 32. g4 {[%emt 0:02:44]} h5 {[%emt 0:01:23]} 33. Qb1 {[%emt 0:01:03]} hxg4 {[%emt 0:00:31]} 34. hxg4 {[%emt 0:00:06]} Kf7 {[%emt 0:00:22]} 35. f4 {[%emt 0:03:56]} Qh8 {[%emt 0:00:30]} 36. b5 {[%emt 0:00:55]} Bxa3 {[%emt 0:00:50]} 37. b6 {[%emt 0:00:41]} Bxc1 {[%emt 0:00:19]} 38. Qxc1 {[%emt 0:00:04]} Rc8 {[%emt 0:01:14]} 39. b7 {[%emt 0:01:22]} Rc7 {[%emt 0:00:07]} 40. Bxe4 {[%emt 0:00:37]} dxe4 {[%emt 0:00:01]} 41. Nb5 {[%emt 0:00:14]} Qh3 {[%emt 0:02:27]} 42. Nxc7 {[%emt 0:00:20]} Qxg4+ {[%emt 0:01:07]} 43. Kh2 {[%emt 0:00:02]} Qe2+ {[%emt 0:00:20]} 44. Kg3 {[%emt 0:00:36]} Qf3+ {[%emt 0:02:47]} 45. Kh2 {[%emt 0:00:11]} Qe2+ {[%emt 0:00:35]} 1/2-1/2

[Event "Gibraltar Challengers B 2020"]
[Site "Caleta"]
[Date "2020.01.27"]
[Round "4.6"]
[White "Tejaswini, Sagar"]
[Black "Osuna Vega, Enrique"]
[Result "1/2-1/2"]
[ECO "C41"]
[WhiteElo "2180"]
[BlackElo "2129"]
[Annotator "ChessBase"]
[PlyCount "73"]
[EventDate "2020.01.20"]
[EventType "swiss"]
[EventCountry "GGB"]
[SourceTitle "playchess.com"]
[Source "ChessBase"]
[SourceQuality "1"]
[TimeControl "6600+10"]

1. e4 {[%emt 0:00:00]} d6 {[%emt 0:01:26]} 2. d4 {[%emt 0:00:09]} Nf6 {[%emt 0:00:06]} 3. Nc3 {[%emt 0:00:04]} e5 {[%emt 0:00:04]} 4. Nf3 {[%emt 0:00:16]} Nbd7 {[%emt 0:00:06]} 5. Bc4 {[%emt 0:00:13]} Be7 {[%emt 0:00:06]} 6. O-O {[%emt 0:00:27]} O-O {[%emt 0:00:05]} 7. Re1 {[%emt 0:00:38]} c6 {[%emt 0:00:06]} 8. a4 {[%emt 0:00:17]} a5 {[%emt 0:00:05]} 9. h3 {[%emt 0:01:48]} Nb6 {[%emt 0:00:09]} 10. Ba2 {[%emt 0:02:35]} Nfd7 {[%emt 0:00:10]} 11. Be3 {[%emt 0:02:24]} exd4 {[%emt 0:00:08]} 12. Bxd4 {[%emt 0:02:28]} Nc5 {[%emt 0:00:14]} 13. Bxc5 {[%emt 0:02:45]} dxc5 {[%emt 0:00:15]} 14. Qxd8 {[%emt 0:00:10]} Rxd8 {[%emt 0:11:38]} 15. Ne5 {[%emt 0:02:28]} Rf8 {[%emt 0:00:35]} 16. Nc4 {[%emt 0:02:51]} Nxc4 {[%emt 0:00:45]} 17. Bxc4 {[%emt 0:00:06]} Bd7 {[%emt 0:06:44]} 18. Rad1 {[%emt 0:02:02]} Rad8 {[%emt 0:00:08]} 19. Rd3 {[%emt 0:02:46]} Bc8 {[%emt 0:00:24]} 20. Red1 {[%emt 0:01:18]} g6 {[%emt 0:05:52]} 21. Ne2 {[%emt 0:03:11]} Kg7 {[%emt 0:03:03]} 22. Nf4 {[%emt 0:07:46]} Bg5 {[%emt 0:13:13]} 23. Rxd8 {[%emt 0:03:19]} Rxd8 {[%emt 0:00:09]} 24. Rxd8 {[%emt 0:01:46]} Bxd8 {[%emt 0:00:02]} 25. Be2 {[%emt 0:02:55]} f5 {[%emt 0:12:03]} 26. exf5 {[%emt 0:02:48]} Bxf5 {[%emt 0:00:31]} 27. g4 {[%emt 0:04:04]} Bg5 {[%emt 0:02:19]} 28. gxf5 {[%emt 0:06:26]} Bxf4 {[%emt 0:00:15]} 29. fxg6 {[%emt 0:00:07]} Kxg6 {[%emt 0:02:04]} 30. Bd3+ {[%emt 0:02:17]} Kg7 {[%emt 0:00:06]} 31. Kg2 {[%emt 0:01:24]} h6 {[%emt 0:00:07]} 32. Kf3 {[%emt 0:02:19]} Bc1 {[%emt 0:00:08]} 33. b3 {[%emt 0:00:11]} Kf6 {[%emt 0:00:07]} 34. Ke4 {[%emt 0:01:28]} Bb2 {[%emt 0:01:49]} 35. f4 {[%emt 0:03:09]} Bc1 {[%emt 0:02:32]} 36. Be2 {[%emt 0:03:37]} Ke6 {[%emt 0:06:45]} 37. Bg4+ {[%emt 0:09:22]} 1/2-1/2

[Event "Gibraltar Challengers B 2020"]
[Site "Caleta"]
[Date "2020.01.27"]
[Round "4.7"]
[White "George, Lolomari Erekosima"]
[Black "Enkhtuul, Altan-Ulzii"]
[Result "0-1"]
[ECO "E91"]
[WhiteElo "2053"]
[BlackElo "2200"]
[Annotator "ChessBase"]
[PlyCount "92"]
[EventDate "2020.01.20"]
[EventType "swiss"]
[EventCountry "GGB"]
[SourceTitle "playchess.com"]
[Source "ChessBase"]
[SourceQuality "1"]
[TimeControl "6600+10"]

1. Nf3 {[%emt 0:05:36]} g6 {[%emt 0:10:41]} 2. c4 {[%emt 0:00:26]} Bg7 {[%emt 0:00:08]} 3. Nc3 {[%emt 0:00:08]} Nf6 {[%emt 0:02:00]} 4. e4 {[%emt 0:00:15]} d6 {[%emt 0:00:21]} 5. d4 {[%emt 0:00:05]} O-O {[%emt 0:00:10]} 6. Be2 {[%emt 0:00:03]} c5 {[%emt 0:00:16]} 7. O-O {[%emt 0:00:09]} Na6 {[%emt 0:03:19]} 8. Be3 {[%emt 0:20:57]} h6 {[%emt 0:08:53]} 9. Rb1 {[%emt 0:15:00]} Kh7 {[%emt 0:10:16]} 10. b3 {[%emt 0:12:33]} Ng4 {[%emt 0:04:31]} 11. Bc1 {[%emt 0:00:39]} Qa5 {[%emt 0:04:13]} 12. Bb2 {[%emt 0:02:23]} Nb4 {[%emt 0:10:44]} 13. h3 {[%emt 0:08:51]} Nf6 {[%emt 0:02:38]} 14. a3 {[%emt 0:03:46]} Nc6 {[%emt 0:08:36]} 15. d5 {[%emt 0:01:20]} Ne8 {[%emt 0:04:39]} 16. Qc2 {[%emt 0:07:48]} Ne5 {[%emt 0:03:54]} 17. Nd2 {[%emt 0:00:43]} Nd7 {[%emt 0:03:39]} 18. Kh1 {[%emt 0:01:19]} Bd4 {[%emt 0:08:53]} 19. f4 {[%emt 0:01:31]} Qd8 {[%emt 0:05:22]} 20. Nf3 {[%emt 0:04:58]} Be3 {[%emt 0:07:17]} 21. e5 {[%emt 0:03:35]} Ng7 {[%emt 0:08:16]} 22. Qe4 {[%emt 0:02:09]} Bd4 {[%emt 0:01:42]} 23. Nxd4 {[%emt 0:00:03]} cxd4 {[%emt 0:00:00]} 24. Qxd4 {[%emt 0:03:12]} Nf5 25. Qf2 {[%emt 0:01:18]} dxe5 {[%emt 0:00:01]} 26. Ne4 {[%emt 0:01:57]} exf4 {[%emt 0:00:39]} 27. Qxf4 {[%emt 0:00:34]} Nb6 {[%emt 0:00:40]} 28. g4 {[%emt 0:01:28]} Ng7 {[%emt 0:01:07]} 29. Bd3 {[%emt 0:02:29]} f5 {[%emt 0:00:43]} 30. Ng3 {[%emt 0:04:47]} e6 {[%emt 0:00:39]} 31. Qe5 {[%emt 0:01:29]} Rg8 {[%emt 0:00:01]} 32. gxf5 {[%emt 0:01:04]} exf5 {[%emt 0:00:05]} 33. Ne4 {[%emt 0:00:56]} Nd7 {[%emt 0:00:12]} 34. Qd4 {[%emt 0:00:50]} Qh4 {[%emt 0:00:23]} 35. Kh2 {[%emt 0:00:54]} fxe4 {[%emt 0:00:07]} 36. Rf7 {[%emt 0:00:07]} Nf6 {[%emt 0:00:00]} 37. Rxf6 {[%emt 0:00:00]} Qxh3+ {[%emt 0:00:00]} 38. Kg1 {[%emt 0:00:00]} Qg3+ {[%emt 0:00:00]} 39. Kh1 {[%emt 0:00:13]} Qh3+ {[%emt 0:00:01]} 40. Kg1 {[%emt 0:00:11]} Qg3+ {[%emt 0:00:01]} 41. Kh1 {[%emt 0:00:16]} Qxd3 {[%emt 0:01:21]} 42. Qe5 {[%emt 0:00:15]} Qh3+ {[%emt 0:00:06]} 43. Kg1 {[%emt 0:00:02]} Qe3+ {[%emt 0:00:07]} 44. Kh1 {[%emt 0:00:11]} Bg4 {[%emt 0:00:23]} 45. Kh2 {[%emt 0:00:47]} Qe2+ {[%emt 0:00:03]} 46. Kg3 {[%emt 0:00:13]} Rae8 {[%emt 0:00:08]} 0-1

[Event "Gibraltar Challengers B 2020"]
[Site "Caleta"]
[Date "2020.01.27"]
[Round "4.8"]
[White "Hamer, Martyn"]
[Black "Levay, Sorin"]
[Result "1-0"]
[ECO "B07"]
[WhiteElo "2069"]
[BlackElo "2192"]
[Annotator "ChessBase"]
[PlyCount "151"]
[EventDate "2020.01.20"]
[EventType "swiss"]
[EventCountry "GGB"]
[SourceTitle "playchess.com"]
[Source "ChessBase"]
[SourceQuality "1"]
[TimeControl "6600+10"]

1. d4 {[%emt 0:00:00]} d6 {[%emt 0:11:49]} 2. e4 {[%emt 0:00:28]} Nf6 {[%emt 0:00:07]} 3. Nc3 {[%emt 0:00:13]} c6 {[%emt 0:00:07]} 4. Nf3 {[%emt 0:01:07]} Bg4 {[%emt 0:00:08]} 5. h3 {[%emt 0:01:53]} Bh5 {[%emt 0:00:07]} 6. Be3 {[%emt 0:03:06]} e6 {[%emt 0:00:15]} 7. Be2 {[%emt 0:03:14]} d5 {[%emt 0:00:31]} 8. e5 {[%emt 0:00:50]} Nfd7 {[%emt 0:00:09]} 9. O-O {[%emt 0:01:01]} Bb4 {[%emt 0:00:14]} 10. Nb1 {[%emt 0:03:46]} Be7 {[%emt 0:00:08]} 11. Nbd2 {[%emt 0:00:33]} c5 {[%emt 0:00:36]} 12. c3 {[%emt 0:00:38]} Qb6 {[%emt 0:00:13]} 13. Qb3 {[%emt 0:02:24]} Nc6 {[%emt 0:00:17]} 14. Rac1 {[%emt 0:06:15]} c4 {[%emt 0:00:09]} 15. Qxb6 {[%emt 0:00:20]} axb6 {[%emt 0:00:03]} 16. a3 {[%emt 0:01:11]} b5 {[%emt 0:00:09]} 17. Bd1 {[%emt 0:06:24]} Nb6 {[%emt 0:00:16]} 18. g4 {[%emt 0:02:52]} Bg6 {[%emt 0:00:08]} 19. Ne1 {[%emt 0:01:15]} h5 {[%emt 0:02:21]} 20. Kg2 {[%emt 0:04:19]} hxg4 {[%emt 0:00:08]} 21. hxg4 {[%emt 0:00:07]} Na4 {[%emt 0:00:44]} 22. Bxa4 {[%emt 0:00:30]} bxa4 {[%emt 0:00:03]} 23. Nc2 {[%emt 0:01:54]} Bd3 {[%emt 0:00:25]} 24. Rh1 {[%emt 0:01:21]} Rxh1 {[%emt 0:00:51]} 25. Kxh1 {[%emt 0:00:06]} f6 {[%emt 0:00:42]} 26. exf6 {[%emt 0:06:12]} gxf6 {[%emt 0:00:11]} 27. Kg2 {[%emt 0:01:29]} Kf7 {[%emt 0:00:36]} 28. Nb4 {[%emt 0:01:47]} Nxb4 {[%emt 0:00:18]} 29. axb4 {[%emt 0:00:22]} Rg8 {[%emt 0:01:21]} 30. f3 {[%emt 0:02:44]} f5 {[%emt 0:00:28]} 31. g5 {[%emt 0:02:14]} Rxg5+ {[%emt 0:01:51]} 32. Kf2 {[%emt 0:11:23]} Rh5 {[%emt 0:00:24]} 33. f4 {[%emt 0:04:17]} Rh2+ {[%emt 0:00:26]} 34. Kg3 {[%emt 0:01:19]} Rh8 {[%emt 0:02:37]} 35. Nf3 {[%emt 0:05:18]} Be4 {[%emt 0:00:12]} 36. Ng5+ {[%emt 0:01:01]} Kg6 {[%emt 0:00:33]} 37. Re1 {[%emt 0:02:09]} b5 {[%emt 0:00:11]} 38. Rg1 {[%emt 0:00:58]} Kf6 {[%emt 0:00:14]} 39. Re1 {[%emt 0:00:40]} Ra8 {[%emt 0:00:20]} 40. Bc1 {[%emt 0:00:47]} Ra6 {[%emt 0:00:54]} 41. Re2 {[%emt 0:04:07]} Kg6 {[%emt 0:00:40]} 42. Rh2 {[%emt 0:01:02]} Bf6 {[%emt 0:00:22]} 43. Rh3 {[%emt 0:01:20]} Ra7 {[%emt 0:01:22]} 44. Rh2 {[%emt 0:01:54]} Rd7 {[%emt 0:00:08]} 45. Be3 {[%emt 0:00:41]} Rd8 {[%emt 0:01:32]} 46. Rh3 {[%emt 0:01:33]} Be7 {[%emt 0:02:18]} 47. Nxe6 {[%emt 0:02:50]} Rg8 {[%emt 0:01:18]} 48. Ng5 {[%emt 0:00:54]} Re8 {[%emt 0:00:54]} 49. Rh2 {[%emt 0:04:13]} Bd6 {[%emt 0:00:26]} 50. Kf2 {[%emt 0:00:31]} Be7 {[%emt 0:03:36]} 51. Rh3 {[%emt 0:00:17]} Bd3 {[%emt 0:04:44]} 52. Rg3 {[%emt 0:00:57]} Kf6 {[%emt 0:00:47]} 53. Rh3 {[%emt 0:00:15]} Kg6 {[%emt 0:02:13]} 54. Rg3 {[%emt 0:00:09]} Rh8 {[%emt 0:00:33]} 55. Rh3 {[%emt 0:00:28]} Rxh3 {[%emt 0:00:22]} 56. Nxh3 {[%emt 0:00:05]} Bh4+ {[%emt 0:00:05]} 57. Kf3 {[%emt 0:01:32]} Be1 {[%emt 0:00:15]} 58. Bc1 {[%emt 0:02:07]} a3 {[%emt 0:00:44]} 59. bxa3 {[%emt 0:00:03]} Bxc3 {[%emt 0:00:08]} 60. Ke3 {[%emt 0:00:35]} Kh5 {[%emt 0:02:40]} 61. Ng5 {[%emt 0:02:05]} Kg4 {[%emt 0:00:13]} 62. Ne6 {[%emt 0:00:03]} Be1 {[%emt 0:01:39]} 63. Nc7 {[%emt 0:00:09]} Bf1 {[%emt 0:01:47]} 64. Nxd5 {[%emt 0:00:32]} c3 {[%emt 0:00:27]} 65. Ne7 {[%emt 0:01:26]} Bg3 {[%emt 0:12:49]} 66. Ng6 {[%emt 0:00:18]} Be1 {[%emt 0:06:58]} 67. Ne7 {[%emt 0:00:20]} Bg2 {[%emt 0:02:08]} 68. d5 {[%emt 0:00:13]} Be4 {[%emt 0:05:17]} 69. d6 {[%emt 0:00:18]} Kg3 {[%emt 0:02:34]} 70. Kd4 {[%emt 0:00:48]} c2 {[%emt 0:02:28]} 71. d7 {[%emt 0:00:12]} Bf2+ {[%emt 0:00:05]} 72. Ke5 {[%emt 0:00:17]} Bb6 {[%emt 0:02:12]} 73. Nxf5+ {[%emt 0:00:02]} Bxf5 {[%emt 0:00:48]} 74. Kxf5 {[%emt 0:00:01]} Kf3 {[%emt 0:00:20]} 75. Ke6 {[%emt 0:00:12]} Ke2 {[%emt 0:00:27]} 76. f5 {[%emt 0:00:08]} 1-0

[Event "Gibraltar Challengers B 2020"]
[Site "Caleta"]
[Date "2020.01.27"]
[Round "4.9"]
[White "Prieto Martin, Alfonso"]
[Black "Martinez Lopez, Jaume"]
[Result "1-0"]
[ECO "B06"]
[WhiteElo "2181"]
[BlackElo "2042"]
[Annotator "ChessBase"]
[PlyCount "53"]
[EventDate "2020.01.20"]
[EventType "swiss"]
[EventCountry "GGB"]
[SourceTitle "playchess.com"]
[Source "ChessBase"]
[SourceQuality "1"]
[TimeControl "6600+10"]

1. e4 {[%emt 0:00:00]} g6 {[%emt 0:00:00]} 2. d4 {[%emt 0:00:16]} Bg7 {[%emt 0:00:09]} 3. Nc3 {[%emt 0:01:05]} d6 {[%emt 0:00:13]} 4. f4 {[%emt 0:00:45]} a6 {[%emt 0:00:10]} 5. Nf3 {[%emt 0:00:35]} b5 {[%emt 0:00:07]} 6. Bd3 {[%emt 0:06:28]} Nd7 {[%emt 0:00:32]} 7. Ne2 {[%emt 0:00:51]} c5 {[%emt 0:00:25]} 8. c3 {[%emt 0:00:10]} Bb7 {[%emt 0:02:06]} 9. O-O {[%emt 0:00:16]} Ngf6 {[%emt 0:00:34]} 10. e5 {[%emt 0:06:58]} Nd5 {[%emt 0:09:20]} 11. Ng5 {[%emt 0:07:40]} Nf8 {[%emt 0:17:09]} 12. Kh1 {[%emt 0:12:00]} Qc7 {[%emt 0:16:30]} 13. Ng3 {[%emt 0:02:26]} f6 {[%emt 0:05:02]} 14. exd6 {[%emt 0:04:14]} exd6 {[%emt 0:01:00]} 15. Re1+ {[%emt 0:07:58]} Ne7 {[%emt 0:00:44]} 16. f5 {[%emt 0:01:50]} fxg5 {[%emt 0:12:54]} 17. Bxg5 {[%emt 0:00:27]} O-O-O {[%emt 0:01:53]} 18. Rxe7 {[%emt 0:01:02]} Qc6 {[%emt 0:00:07]} 19. Rxb7 {[%emt 0:09:04]} Qxb7 {[%emt 0:00:15]} 20. Bxd8 {[%emt 0:01:24]} Kxd8 {[%emt 0:02:27]} 21. dxc5 {[%emt 0:00:34]} d5 {[%emt 0:01:11]} 22. Be4 {[%emt 0:01:15]} Nd7 {[%emt 0:01:01]} 23. Bxd5 {[%emt 0:00:12]} Qc7 {[%emt 0:00:40]} 24. Be6 {[%emt 0:01:47]} Ke8 {[%emt 0:00:47]} 25. Ne4 {[%emt 0:05:51]} Be5 {[%emt 0:03:39]} 26. Qd5 {[%emt 0:00:59]} gxf5 {[%emt 0:01:42]} 27. Bxd7+ {[%emt 0:00:10]} 1-0

[Event "Gibraltar Challengers B 2020"]
[Site "Caleta"]
[Date "2020.01.27"]
[Round "4.10"]
[White "Raghav, Srivathsav V"]
[Black "Galvan, Jesus"]
[Result "0-1"]
[ECO "B20"]
[WhiteElo "2023"]
[BlackElo "2180"]
[Annotator "ChessBase"]
[PlyCount "56"]
[EventDate "2020.01.20"]
[EventType "swiss"]
[EventCountry "GGB"]
[SourceTitle "playchess.com"]
[Source "ChessBase"]
[SourceQuality "1"]
[TimeControl "6600+10"]

1. e4 {[%emt 0:15:40]} c5 {[%emt 0:01:10]} 2. b3 {[%emt 0:00:24]} Nc6 {[%emt 0:00:16]} 3. Bb2 {[%emt 0:00:06]} e5 {[%emt 0:00:07]} 4. g3 {[%emt 0:00:07]} d5 {[%emt 0:00:11]} 5. exd5 {[%emt 0:01:25]} Qxd5 {[%emt 0:00:02]} 6. Qf3 {[%emt 0:01:11]} Qd6 {[%emt 0:01:44]} 7. Bb5 {[%emt 0:05:15]} Bd7 {[%emt 0:02:49]} 8. Nc3 {[%emt 0:00:19]} a6 {[%emt 0:01:54]} 9. Bc4 {[%emt 0:05:43]} Nf6 {[%emt 0:01:29]} 10. Nge2 {[%emt 0:06:38]} Nd4 {[%emt 0:14:25]} 11. Nxd4 {[%emt 0:15:11]} cxd4 {[%emt 0:00:12]} 12. Qxb7 {[%emt 0:02:53]} Rb8 {[%emt 0:28:20]} 13. Qxa6 {[%emt 0:04:06]} Bc6 {[%emt 0:00:05]} 14. O-O {[%emt 0:09:19]} dxc3 {[%emt 0:20:10]} 15. Bxc3 {[%emt 0:02:14]} Nd7 {[%emt 0:04:38]} 16. Rfe1 {[%emt 0:04:35]} Ra8 {[%emt 0:05:20]} 17. Bxe5 {[%emt 0:00:30]} Nxe5 {[%emt 0:00:08]} 18. Qb6 {[%emt 0:03:40]} Kd7 {[%emt 0:01:06]} 19. Bb5 {[%emt 0:01:50]} Nf3+ {[%emt 0:01:51]} 20. Kf1 {[%emt 0:00:27]} Nxh2+ {[%emt 0:00:35]} 21. Kg1 {[%emt 0:00:08]} Nf3+ {[%emt 0:02:34]} 22. Kf1 {[%emt 0:00:15]} Nxe1 {[%emt 0:16:26]} 23. Qb7+ {[%emt 0:00:44]} Kd8 {[%emt 0:02:10]} 24. Bxc6 {[%emt 0:00:59]} Rb8 {[%emt 0:00:16]} 25. Qa7 {[%emt 0:01:20]} Nxc2 {[%emt 0:00:27]} 26. Rc1 {[%emt 0:00:36]} Nb4 {[%emt 0:00:14]} 27. Ba4 {[%emt 0:00:56]} Qa6+ {[%emt 0:00:06]} 28. Qxa6 Nxa6 {[%emt 0:00:10]} 0-1

[Event "Gibraltar Challengers B 2020"]
[Site "Caleta"]
[Date "2020.01.27"]
[Round "4.11"]
[White "Hladik, Lumir"]
[Black "Ask, Josef"]
[Result "0-1"]
[ECO "C60"]
[WhiteElo "2018"]
[BlackElo "2174"]
[Annotator "ChessBase"]
[PlyCount "64"]
[EventDate "2020.01.20"]
[EventType "swiss"]
[EventCountry "GGB"]
[SourceTitle "playchess.com"]
[Source "ChessBase"]
[SourceQuality "1"]
[TimeControl "6600+10"]

1. e4 {[%emt 0:00:00]} e5 {[%emt 0:00:08]} 2. Nf3 {[%emt 0:00:11]} Nc6 {[%emt 0:00:18]} 3. Bb5 {[%emt 0:00:15]} Nge7 {[%emt 0:01:15]} 4. d4 {[%emt 0:01:42]} exd4 {[%emt 0:00:28]} 5. Nxd4 {[%emt 0:02:24]} Ng6 {[%emt 0:01:44]} 6. O-O {[%emt 0:03:56]} Bc5 {[%emt 0:00:47]} 7. Nf5 {[%emt 0:01:38]} O-O {[%emt 0:00:39]} 8. Qd5 {[%emt 0:03:22]} Bb6 {[%emt 0:01:09]} 9. Be3 {[%emt 0:17:12]} Nce5 {[%emt 0:05:45]} 10. Bxb6 {[%emt 0:01:09]} axb6 {[%emt 0:00:15]} 11. Qd2 {[%emt 0:03:15]} d5 {[%emt 0:03:28]} 12. f4 {[%emt 0:02:06]} Ng4 {[%emt 0:02:09]} 13. Qc3 {[%emt 0:27:31]} Bxf5 {[%emt 0:03:40]} 14. exf5 {[%emt 0:00:36]} Ne7 {[%emt 0:00:31]} 15. Be2 {[%emt 0:01:00]} d4 {[%emt 0:02:57]} 16. Qd3 {[%emt 0:02:11]} Ne3 {[%emt 0:02:12]} 17. f6 {[%emt 0:00:56]} gxf6 {[%emt 0:01:33]} 18. Rf3 {[%emt 0:00:52]} Qd5 {[%emt 0:01:57]} 19. Rg3+ {[%emt 0:00:52]} Kh8 {[%emt 0:00:53]} 20. Bf3 {[%emt 0:00:38]} Qc4 {[%emt 0:03:19]} 21. Nd2 {[%emt 0:08:21]} Qxd3 {[%emt 0:03:44]} 22. cxd3 {[%emt 0:00:09]} N7d5 {[%emt 0:02:19]} 23. Nf1 {[%emt 0:04:47]} c6 {[%emt 0:05:34]} 24. a3 {[%emt 0:00:14]} Nf5 {[%emt 0:02:38]} 25. Be4 {[%emt 0:02:40]} Nxg3 {[%emt 0:00:27]} 26. Nxg3 {[%emt 0:00:24]} Ne3 {[%emt 0:01:56]} 27. f5 {[%emt 0:00:30]} Rfe8 {[%emt 0:02:24]} 28. Re1 {[%emt 0:00:58]} Rad8 {[%emt 0:01:11]} 29. Re2 {[%emt 0:00:24]} Re5 {[%emt 0:00:45]} 30. Rf2 {[%emt 0:02:13]} Rc5 {[%emt 0:01:08]} 31. h3 {[%emt 0:00:30]} Rg8 {[%emt 0:02:17]} 32. Nh5 {[%emt 0:00:19]} Rc1+ {[%emt 0:01:39]} 0-1

[Event "Gibraltar Challengers B 2020"]
[Site "Caleta"]
[Date "2020.01.27"]
[Round "4.12"]
[White "Gonzalvez Perales, Jose Luis"]
[Black "Sanchez Jerez, Emilio Miguel"]
[Result "0-1"]
[ECO "A45"]
[WhiteElo "1992"]
[BlackElo "2168"]
[Annotator "ChessBase"]
[PlyCount "58"]
[EventDate "2020.01.20"]
[EventType "swiss"]
[EventCountry "GGB"]
[SourceTitle "playchess.com"]
[Source "ChessBase"]
[SourceQuality "1"]
[TimeControl "6600+10"]

1. d4 {[%emt 0:00:00]} e6 {[%emt 0:02:20]} 2. Bf4 {[%emt 0:00:18]} Nf6 {[%emt 0:00:48]} 3. e3 {[%emt 0:00:25]} c5 {[%emt 0:00:29]} 4. c3 {[%emt 0:00:45]} Nc6 {[%emt 0:00:15]} 5. Nd2 {[%emt 0:00:55]} Be7 {[%emt 0:01:47]} 6. Bd3 {[%emt 0:01:57]} O-O {[%emt 0:00:28]} 7. Ngf3 {[%emt 0:02:32]} Nh5 {[%emt 0:07:36]} 8. Bg3 {[%emt 0:06:19]} g6 {[%emt 0:02:02]} 9. Ne5 {[%emt 0:01:24]} Nxg3 {[%emt 0:15:14]} 10. hxg3 {[%emt 0:01:04]} cxd4 {[%emt 0:00:45]} 11. exd4 {[%emt 0:05:51]} d6 {[%emt 0:10:07]} 12. Nef3 {[%emt 0:13:15]} e5 {[%emt 0:03:30]} 13. dxe5 {[%emt 0:12:24]} dxe5 {[%emt 0:00:12]} 14. Nc4 {[%emt 0:02:22]} Bf6 {[%emt 0:14:28]} 15. Qd2 {[%emt 0:01:16]} Bg7 {[%emt 0:04:08]} 16. O-O-O {[%emt 0:01:52]} Qc7 {[%emt 0:06:54]} 17. Qg5 {[%emt 0:11:56]} Re8 {[%emt 0:12:53]} 18. Qh4 {[%emt 0:24:26]} h6 {[%emt 0:08:20]} 19. Ne3 {[%emt 0:12:20]} Ne7 {[%emt 0:04:07]} 20. g4 {[%emt 0:04:01]} f6 {[%emt 0:06:26]} 21. Bc4+ {[%emt 0:03:52]} Kf8 {[%emt 0:00:25]} 22. g5 {[%emt 0:02:19]} fxg5 {[%emt 0:02:45]} 23. Nxg5 {[%emt 0:00:02]} hxg5 {[%emt 0:00:15]} 24. Qxg5 {[%emt 0:00:28]} Bf5 {[%emt 0:03:54]} 25. Rh7 {[%emt 0:00:18]} e4 {[%emt 0:01:40]} 26. Rdh1 {[%emt 0:00:45]} Qe5 {[%emt 0:00:11]} 27. Qh6 {[%emt 0:00:25]} Ng8 {[%emt 0:01:27]} 28. Rh8 {[%emt 0:00:30]} Bxh6 {[%emt 0:00:20]} 29. Rxg8+ {[%emt 0:00:12]} Ke7 {[%emt 0:00:01]} 0-1

[Event "Gibraltar Challengers B 2020"]
[Site "Caleta"]
[Date "2020.01.27"]
[Round "4.13"]
[White "Alami, Halim"]
[Black "Voiteanu, Gabriel"]
[Result "1-0"]
[ECO "D00"]
[WhiteElo "1987"]
[BlackElo "2133"]
[Annotator "ChessBase"]
[PlyCount "43"]
[EventDate "2020.01.20"]
[EventType "swiss"]
[EventCountry "GGB"]
[SourceTitle "playchess.com"]
[Source "ChessBase"]
[SourceQuality "1"]
[TimeControl "6600+10"]

1. d4 {[%emt 0:00:08]} d5 {[%emt 0:08:43]} 2. f4 {[%emt 0:05:44]} c5 {[%emt 0:00:40]} 3. e3 {[%emt 0:00:11]} Bf5 {[%emt 0:01:38]} 4. Nf3 {[%emt 0:00:22]} e6 {[%emt 0:00:36]} 5. Be2 {[%emt 0:04:36]} Nf6 {[%emt 0:02:10]} 6. O-O {[%emt 0:00:53]} Bd6 {[%emt 0:00:30]} 7. c3 {[%emt 0:00:22]} Nbd7 {[%emt 0:01:02]} 8. Ne5 {[%emt 0:00:30]} h5 {[%emt 0:01:39]} 9. Nd2 {[%emt 0:01:47]} Be4 {[%emt 0:05:44]} 10. Nxe4 {[%emt 0:05:24]} dxe4 {[%emt 0:01:01]} 11. Bb5 {[%emt 0:04:36]} a6 {[%emt 0:04:36]} 12. Be2 {[%emt 0:05:01]} g6 {[%emt 0:04:14]} 13. Bd2 {[%emt 0:01:28]} Qc7 {[%emt 0:01:59]} 14. Qb1 {[%emt 0:04:50]} O-O {[%emt 0:03:35]} 15. Be1 {[%emt 0:01:46]} b5 {[%emt 0:02:50]} 16. Bh4 {[%emt 0:01:59]} Qb7 {[%emt 0:00:59]} 17. Qe1 {[%emt 0:01:14]} Nd5 {[%emt 0:05:48]} 18. Qg3 {[%emt 0:02:30]} Kh7 {[%emt 0:02:30]} 19. Qh3 {[%emt 0:06:49]} N7b6 {[%emt 0:13:46]} 20. g4 {[%emt 0:07:59]} hxg4 {[%emt 0:06:46]} 21. Nxg4 {[%emt 0:01:55]} Kg7 {[%emt 0:00:15]} 22. Bf6+ {[%emt 0:00:27]} 1-0